[Event "41st BAN National Women Chess-ch 2022"]
[Site "Dhaka"]
[Date "2022.11.19"]
[Round "3.1"]
[White "Sabiha, Marjana"]
[Black "Khan, Nazrana"]
[Result "0-1"]
[ECO "A07"]
[WhiteElo "1267"]
[BlackElo "1908"]
[Annotator "TA"]
[PlyCount "118"]
[EventDate "2022.11.17"]
[EventCountry "BAN"]
[SourceTitle "playchess.com"]
[Source "ChessBase"]
[SourceQuality "1"]
[TimeControl "40/5400+30:1800+30"]

{[%evp 9,118,-16,-18,-13,-5,-16,-6,-26,-14,-19,0,0,0,0,6,-12,12,0,5,-58,-52,-58,-25,-36,0,-1,-2,-2,0,0,0,0,0,-16,-8,-14,-16,-39,-27,-56,-14,-39,-19,-22,-14,-21,-8,-21,-9,-26,-22,-30,-22,-24,-20,-31,0,-223,-236,-226,-220,-220,-162,-160,-158,-239,-207,-264,-240,-305,-244,-316,-232,-210,-199,-175,-174,-181,-6,-99,-88,-89,-48,-250,-26,-261,-250,-208,168,-614,-668,-951,-895,-997,-958,-10740,-10657,-29946,-10845,-6170,-5823,-29967,-9322,-29981,-29982,-29982,-29980,-29983,-29980,-29981,-29983]} 1. Nf3 {[%emt 0:00:12]} Nf6 {[%emt 0:00:08]} 2. g3 {[%emt 0:00:13]} g6 {[%emt 0:00:12]} 3. d3 {[%emt 0:00:08][%cal Bd2d3,Bd3d4][%mdl 32]} d5 {[%emt 0:00:31]} 4. Bg2 {[%emt 0:00:16]} Bg7 {[%emt 0:01:19]} 5. d4 {[%emt 0:01:37]} O-O {[%emt 0:01:57]} 6. O-O {[%emt 0:01:22][%cal Oc2c4] A07: Réti Opening: New York and Capablanca Systems.} Nbd7 {[%emt 0:01:31]} 7. c3 {[%emt 0:01:09] [#]} Re8 $146 {[%emt 0:01:16]} ({Predecessor:} 7... c5 8. e3 Ne4 9. Nfd2 f5 10. dxc5 Ndxc5 11. Nb3 b6 12. Qc2 Ba6 13. Rd1 e6 14. Nd4 Qf6 {½-½ (92) Cruz Pino,A (1988)-Meyer,C (1914) Las Palmas 2014}) 8. Bg5 {[%emt 0:01:52] The position is equal.} c5 {[%emt 0:02:09]} 9. Nbd2 {[%emt 0:03:47]} (9. Ne5 {is more complex.} Qb6 10. Qb3 cxd4 11. Qxb6 axb6 12. cxd4 Nxe5 13. dxe5 Ng4 14. Bxd5 Bxe5 15. Bc1) 9... cxd4 {[%emt 0:03:43]} 10. cxd4 {[%emt 0:00:49]} Nb6 {[%emt 0:11:15]} 11. Bxf6 {[%emt 0:03:42]} Bxf6 {[%emt 0:03:12]} 12. e3 {[%emt 0:00:24]} Bg7 {[%emt 0:02:02]} 13. Qb3 {[%emt 0:02:59]} Bd7 {[%emt 0:02:54][%cal Bc8d7,Bd7a4,Ba4b5][%mdl 32]} 14. Ne1 {[%emt 0:02:48]} (14. Rfc1 $11) 14... Ba4 $15 {[%emt 0:02:24]} 15. Qa3 {[%emt 0:05:16]} e6 {[%emt 0:02:20]} (15... Bb5 $5 16. Nd3 $8 Qd6 $11) 16. Nd3 {[%emt 0:03:46]} Bb5 {[%emt 0:03:56]} (16... Bf8 $5 {[%cal Rf8a3]} 17. Nc5 Bc6 $15) 17. Rfc1 {[%emt 0:01:47]} Bf8 {[%emt 0:06:04]} 18. Nc5 {[%emt 0:01:33]} Qe7 {[%emt 0:02:08]} 19. Qb3 {[%emt 0:04:55]} Bc6 {[%emt 0:06:38]} 20. Qd1 {[%emt 0:02:34]} Nd7 {[%emt 0:02:07]} 21. Nxd7 {[%emt 0:01:55]} Qxd7 {[%emt 0:00:25]} 22. Nf3 {[%emt 0:01:20]} f6 {[%emt 0:05:27]} 23. b3 {[%emt 0:01:20]} Ba3 {[%emt 0:02:01]} 24. Rc2 {[%emt 0:00:27]} a5 {[%emt 0:00:46]} 25. Qd2 {[%emt 0:09:31]} Kg7 {[%emt 0:00:55]} 26. Ne1 {[%emt 0:01:31][%cal Bf3e1,Be1d3,Bd3c5][%mdl 32]} Rec8 {[%emt 0:02:55]} 27. Nd3 {[%emt 0:03:57]} Qd6 {[%emt 0:02:09]} 28. Bh3 {[%emt 0:03:06]} Re8 {[%emt 0:01:20]} 29. Nc5 {[%emt 0:02:35]} b6 {[%emt 0:02:19]} 30. Na4 {[%emt 0:06:43]} Bd7 {[%emt 0:00:32]} 31. Bf1 {[%emt 0:03:36]} Rec8 {[%emt 0:01:00]} 32. Nc3 {[%emt 0:04:45]} Rc7 {[%emt 0:03:43]} 33. Bb5 $2 {[%emt 0:03:21] [#]} (33. Nb5 $11 {and White has nothing to worry.} Bxb5 34. Bxb5) 33... Rxc3 $1 $19 {[%emt 0:01:36][%mdl 512]} 34. Qxc3 {[%emt 0:02:22] Hoping for Bxd7.} Bxb5 {[%emt 0:01:21] This bishop pair is nice.} 35. Qc7+ {[%emt 0:00:37]} Qxc7 {[%emt 0:02:57]} 36. Rxc7+ {[%emt 0:00:12]} Kh6 {[%emt 0:01:51]} 37. Rd1 {[%emt 0:01:29]} (37. Rb7 $17) 37... Rd8 {[%emt 0:08:45]} 38. Rd2 {[%emt 0:00:48]} g5 {[%emt 0:00:15]} 39. g4 {[%emt 0:00:51]} f5 {[%emt 0:05:30]} 40. h3 {[%emt 0:01:32]} fxg4 {[%emt 0:01:17]} 41. hxg4 {[%emt 0:30:15]} Kg6 {[%emt 0:32:30]} 42. f3 {[%emt 0:00:57]} Bb4 {[%emt 0:01:03]} 43. Rdc2 {[%emt 0:00:47]} a4 $2 {[%emt 0:00:00]} (43... Rf8 $19 44. Kf2 h5 45. gxh5+ Kxh5) 44. Rc8 {[%emt 0:00:00]} (44. Rb7 $1 $11 {remains equal.}) 44... Rxc8 $17 {[%emt 0:00:00]} 45. Rxc8 {[%emt 0:00:00]} a3 {[%emt 0:00:00]} 46. Kf2 $2 {[%emt 0:00:00] [#]} (46. Rb8 $1 $15 Bd3 47. Rxb6) 46... Kf6 $2 {[%emt 0:00:00]} (46... Bd3 $1 $19 {[%cal Rd3b1] Threatens to win with ...Bb1.} 47. Rc6 Bb1 48. Rxe6+ Kf7 49. Rxb6 Be7) 47. e4 $2 {[%emt 0:00:00]} (47. Rb8 $11 Bd3 48. Rxb6) 47... dxe4 $19 {[%emt 0:00:00]} 48. fxe4 {[%emt 0:00:00] [#]} e5 $4 {[%emt 0:00:00][%mdl 8192]} (48... Bd3 $1 $19 {[%cal Rd3b1] aiming for ...Bb1.} 49. e5+ Ke7) 49. dxe5+ $4 {[%emt 0:00:00][%mdl 8192]} (49. Rb8 $18 Ba5 50. b4) 49... Kxe5 {[%emt 0:00:00]} 50. Ke3 {[%emt 0:00:00]} Bc5+ {[%emt 0:00:00]} 51. Kf3 {[%emt 0:00:00]} Bd3 {[%emt 0:00:00]} 52. Kg3 {[%emt 0:00:00]} Kxe4 {[%emt 0:00:00]} 53. Re8+ {[%emt 0:00:00]} Kd4 {[%emt 0:00:00]} 54. Re1 {[%emt 0:00:09]} Kc3 {[%emt 0:00:00] ( -> ...Kb2)} 55. Rh1 {[%emt 0:00:31]} Bc2 {[%emt 0:00:00]} (55... Kb2 $142 56. b4 Bxb4 57. Rh2+ Kb1 58. Kf3 Bc4 59. Ke3 Bxa2 60. Rh1+ Kb2 61. Rh2+ Kb3 62. Rh1 Kc2 63. Rh2+ Kb3 64. Rh1 Kc2 65. Rh2+ Kb3) 56. Kh3 {[%emt 0:00:47] [#]} Bxb3 $1 {[%emt 0:00:00] Black mates.} 57. axb3 {[%emt 0:22:27]} Kxb3 {[%emt 0:10:37]} 58. Kg3 {[%emt 0:00:00]} a2 {[%emt 0:00:00]} 59. Kf3 {[%emt 0:00:00]} Bd4 {[%emt 0:00:00] Weighted Error Value: White=0.97/Black=0.42} 0-1

[Event "41st BAN National Women Chess-ch 2022"]
[Site "Dhaka"]
[Date "2022.11.19"]
[Round "3.2"]
[White "Wadifa, Ahmed"]
[Black "Warsia, Khusbu"]
[Result "1-0"]
[ECO "E81"]
[WhiteElo "1656"]
[BlackElo "1540"]
[Annotator "NA COMBH"]
[PlyCount "109"]
[EventDate "2022.11.17"]
[EventCountry "BAN"]
[SourceTitle "playchess.com"]
[Source "ChessBase"]
[SourceQuality "1"]
[TimeControl "40/5400+30:1800+30"]

1. d4 {[%emt 0:00:03]} Nf6 {[%emt 0:05:16]} 2. c4 {[%emt 0:00:06]} g6 {[%emt 0:00:14]} 3. Nc3 {[%emt 0:00:07]} Bg7 {[%emt 0:00:09]} 4. e4 {[%emt 0:00:05]} d6 {[%emt 0:00:07]} 5. f3 {[%emt 0:00:06]} O-O {[%emt 0:00:08]} 6. Be3 {[%emt 0:00:04]} Nbd7 {[%emt 0:01:08]} 7. Nge2 {[%emt 0:00:55]} c6 {[%emt 0:07:21]} 8. Qd2 {[%emt 0:01:27]} Re8 {[%emt 0:02:55]} 9. h4 {[%emt 0:03:17]} e5 {[%emt 0:00:43]} 10. d5 {[%emt 0:18:35]} Nb6 {[%emt 0:12:18]} 11. Nc1 {[%emt 0:04:31]} Nh5 {[%emt 0:08:57]} 12. Bf2 {[%emt 0:07:41]} f5 {[%emt 0:01:08]} 13. Nb3 {[%emt 0:02:23]} fxe4 {[%emt 0:05:22]} 14. Nxe4 {[%emt 0:03:00]} cxd5 {[%emt 0:03:35]} 15. Bxb6 {[%emt 0:12:21]} Qxb6 {[%emt 0:00:12]} 16. c5 {[%emt 0:00:06]} dxc5 {[%emt 0:07:25]} 17. Qxd5+ {[%emt 0:00:25]} Be6 {[%emt 0:00:18]} 18. Qxc5 {[%emt 0:00:07]} Rec8 {[%emt 0:10:37]} 19. Qxb6 {[%emt 0:22:55]} axb6 {[%emt 0:00:19]} 20. Nbd2 {[%emt 0:00:57]} Rc2 {[%emt 0:02:40]} 21. Bd3 {[%emt 0:05:25]} Rxb2 {[%emt 0:01:02]} 22. O-O {[%emt 0:00:03]} Nf4 {[%emt 0:01:07]} 23. Bb1 {[%emt 0:00:56]} Bd5 {[%emt 0:02:40]} 24. Rf2 {[%emt 0:08:37]} Bf8 {[%emt 0:11:30]} 25. Nf6+ {[%emt 0:02:43]} Kg7 {[%emt 0:00:37]} 26. Nde4 {[%emt 0:00:09]} Rxf2 {[%emt 0:01:09]} 27. Kxf2 {[%emt 0:00:02]} Bxe4 {[%emt 0:02:54]} 28. Nxe4 {[%emt 0:00:14]} Bc5+ {[%emt 0:01:13]} 29. Nxc5 {[%emt 0:01:22]} bxc5 {[%emt 0:00:05]} 30. Be4 {[%emt 0:00:54]} Rb8 {[%emt 0:01:40]} 31. a4 {[%emt 0:01:07]} Ne6 {[%emt 0:02:16]} 32. Rb1 {[%emt 0:02:14]} c4 {[%emt 0:04:52]} 33. Rxb7+ {[%emt 0:01:29]} Rxb7 {[%emt 0:00:04]} 34. Bxb7 {[%emt 0:00:03]} Nc5 {[%emt 0:00:31]} 35. Bc6 {[%emt 0:00:01]} Kf6 {[%emt 0:00:15]} 36. Ke3 {[%emt 0:00:17]} Ke6 {[%emt 0:00:10]} 37. Kd2 {[%emt 0:00:28]} Kd6 {[%emt 0:01:40]} 38. Bb5 {[%emt 0:00:04]} e4 {[%emt 0:02:37]} 39. fxe4 {[%emt 0:01:16]} Nxe4+ {[%emt 0:00:08]} 40. Ke3 {[%emt 0:00:04]} c3 {[%emt 0:01:12]} 41. Bd3 {[%emt 0:32:13]} Nc5 {[%emt 0:31:00]} 42. a5 {[%emt 0:00:49]} Nb3 {[%emt 0:00:00]} 43. a6 {[%emt 0:00:00]} Kc7 {[%emt 0:00:00]} 44. g4 {[%emt 0:00:00]} Kb6 {[%emt 0:00:00]} 45. g5 {[%emt 0:00:00]} Nc5 {[%emt 0:00:00]} 46. Kd4 {[%emt 0:00:00]} Ne6+ {[%emt 0:00:00]} 47. Kxc3 {[%emt 0:00:00]} Nf4 {[%emt 0:00:00]} 48. Bf1 {[%emt 0:00:00]} Ne6 {[%emt 0:00:00]} 49. Bd3 {[%emt 0:00:00]} Nf4 {[%emt 0:00:00]} 50. Kd4 {[%emt 0:00:00]} Ng2 {[%emt 0:00:00]} 51. Be4 {[%emt 0:00:00]} Nf4 {[%emt 0:00:00]} 52. Ke5 {[%emt 0:00:00]} Nh5 {[%emt 0:00:00]} 53. Bb7 {[%emt 0:00:00]} Kc7 {[%emt 0:00:00]} 54. Bf3 {[%emt 0:00:00]} Ng3 {[%emt 0:00:00]} 55. a7 {[%emt 0:00:00]} 1-0

[Event "41st BAN National Women Chess-ch 2022"]
[Site "Dhaka"]
[Date "2022.11.19"]
[Round "3.3"]
[White "Talukder, Umme Taslima Protiva"]
[Black "Kazi Zarin, Tasnim"]
[Result "0-1"]
[ECO "D45"]
[WhiteElo "1780"]
[BlackElo "1860"]
[Annotator "NA COMBH"]
[PlyCount "92"]
[EventDate "2022.11.17"]
[EventCountry "BAN"]
[SourceTitle "playchess.com"]
[Source "ChessBase"]
[SourceQuality "1"]
[TimeControl "40/5400+30:1800+30"]

{[%evp 17,84,0,6,6,2,14,15,-22,-10,-35,-37,-56,-52,-54,32767,-50,-50,-72,-80,32767,32767,-73,-70,-68,-64,-80,-81,-91,-96,-100,-96,-121,-116,-127,-124,-174,-135,-160,-134,-197,-249,-229,-110,-104,-97,-93,-67,-139,32767,32767,32767,32767,32767,32767,239,32767,32767,32767,254,32767,32767,-202,-232,-448,-229,-695,-862,-5422,-29968]} 1. d4 {[%emt 0:00:04]} Nf6 {[%emt 0:00:08]} 2. c4 {[%emt 0:00:16]} e6 {[%emt 0:00:06]} 3. Nf3 {[%emt 0:00:42]} d5 {[%emt 0:00:06]} 4. Nc3 {[%emt 0:00:37]} c6 {[%emt 0:00:11]} 5. e3 {[%emt 0:01:05]} Nbd7 {[%emt 0:00:06]} 6. cxd5 {[%emt 0:00:43]} exd5 {[%emt 0:00:31]} 7. Bd3 {[%emt 0:00:17]} Bd6 {[%emt 0:00:45]} 8. O-O {[%emt 0:01:04]} O-O {[%emt 0:00:21]} 9. Qc2 {[%emt 0:01:23]} h6 {[%emt 0:00:42]} 10. b3 {[%emt 0:00:51]} Re8 {[%emt 0:03:57]} 11. Bb2 {[%emt 0:00:37]} Qe7 {[%emt 0:01:35]} 12. Rae1 {[%emt 0:03:05]} Ne4 {[%emt 0:03:47]} 13. Nd2 {[%emt 0:02:07]} Ndf6 {[%emt 0:03:45]} ({Don't take} 13... Qh4 14. g3 Qe7 15. Ncxe4 (15. Ndxe4 dxe4 16. Bxe4 Nb6 $16) 15... dxe4 16. Bxe4 $16 (16. Nxe4 Bb4 $16)) 14. f3 {[%emt 0:14:23]} Nxc3 {[%emt 0:20:52]} 15. Bxc3 {[%emt 0:00:43]} Qc7 {[%emt 0:02:28]} 16. f4 $1 {[%emt 0:09:50]} Bd7 {[%emt 0:08:26]} 17. Nf3 {[%emt 0:04:25]} Ne4 {[%emt 0:02:48]} 18. Bb2 {[%emt 0:07:13]} f6 {[%emt 0:02:43]} 19. Nd2 {[%emt 0:07:53]} Bf5 {[%emt 0:05:53]} 20. Nxe4 {[%emt 0:04:12]} Bxe4 {[%emt 0:00:08]} 21. Bxe4 {[%emt 0:04:42]} Rxe4 {[%emt 0:00:05]} 22. g3 {[%emt 0:01:31]} Rae8 {[%emt 0:03:24]} 23. Qd2 {[%emt 0:02:44]} Qe7 {[%emt 0:01:55]} 24. Kf2 {[%emt 0:02:13]} Qe6 {[%emt 0:02:20]} 25. Bc3 {[%emt 0:05:17]} h5 {[%emt 0:03:19]} 26. b4 {[%emt 0:05:19]} (26. h4 $17) 26... Kh8 {[%emt 0:08:50]} (26... g5 $19 27. Kg1 Rxe3 28. fxg5 Rxe1 29. Qxe1 Qxe1 30. Rxe1 Rxe1+ 31. Bxe1 fxg5) 27. Qc1 {[%emt 0:07:13]} (27. h4 $142) 27... Qh3 {[%emt 0:03:01]} (27... g5 $19 28. Kg1 Qh3) 28. Rh1 {[%emt 0:01:44] [#]} (28. Rg1 $17 {was worth a try.}) 28... g5 $1 {[%emt 0:03:58]} 29. Bd2 {[%emt 0:01:06]} Kg7 {[%emt 0:00:59]} (29... gxf4 $19 {is more deadly.} 30. exf4 Rxe1 31. Bxe1 Qg4) 30. Qd1 {[%emt 0:02:33]} Kg6 {[%emt 0:00:34]} ({Worse is} 30... gxf4 31. gxf4 Qh4+ 32. Kg2 $15) (30... h4 $142 31. Qh5 Qe6) 31. Qf3 {[%emt 0:01:22]} h4 {[%emt 0:07:41]} 32. gxh4 {[%emt 0:01:51]} (32. g4 $1 $15 Qxf3+ 33. Kxf3) 32... Qxh4+ {[%emt 0:00:37]} 33. Qg3 {[%emt 0:00:21]} Qh5 {[%emt 0:00:44]} 34. f5+ {[%emt 0:00:50]} Kxf5 {[%emt 0:02:02]} 35. Qxd6 {[%emt 0:00:06]} R8e6 $2 {[%emt 0:00:29]} (35... Rf4+ $1 $11 {and Black stays safe.} 36. exf4 Qh4+ 37. Kg2 Qg4+ 38. Kf2 Qh4+ 39. Kg2 Qg4+ 40. Kf2 Qh4+) 36. Qg3 {[%emt 0:00:18]} Kg6 {[%emt 0:00:06]} 37. h3 {[%emt 0:03:05]} f5 {[%emt 0:01:33]} 38. Bc1 {[%emt 0:01:21]} f4 {[%emt 0:00:46]} 39. Qg2 $2 {[%emt 0:01:53]} ({Not} 39. exf4 $2 Re2+ 40. Rxe2 Qxe2+ 41. Kg1 Qd1+ 42. Kh2 (42. Kg2 $2 Re2+ 43. Kf3 Qd3+ 44. Kg4 Qf5+ 45. Kf3 Qe4+ 46. Kg4 Rg2 $19) 42... Re2+ 43. Qg2 Rxg2+ 44. Kxg2 Qxd4 $19) (39. Qf3 $11 fxe3+ 40. Kg2 (40. Rxe3 $2 Rf6 $19) 40... Qxf3+ 41. Kxf3 Rf4+ 42. Kg3 Rxd4 43. Bxe3 (43. Rxe3 Rxe3+ 44. Bxe3 Rxb4 $11) 43... Rxb4 44. Bxa7 Rxe1 45. Rxe1) 39... Qh4+ {[%emt 0:01:56]} 40. Kf1 $2 {[%emt 0:01:03]} (40. Ke2 fxe3 41. Rhg1 Rxd4 42. Qg3) 40... fxe3 {[%emt 0:00:43]} (40... Rf6 $142 41. Ke2 f3+ 42. Qxf3 Rxf3 43. Kxf3 Qh5+ 44. Kg3 Rh4) 41. Ke2 $2 {[%emt 0:07:48]} (41. Re2) 41... Rxd4 {[%emt 0:03:04]} 42. a3 $19 {[%emt 0:00:56]} Rc4 {[%emt 0:01:13]} 43. Kd1 {[%emt 0:08:26]} Qd4+ {[%emt 0:01:13]} 44. Bd2 {[%emt 0:00:47]} e2+ {[%emt 0:01:32]} 45. Rxe2 {[%emt 0:01:47]} Qa1+ {[%emt 0:00:05]} 46. Bc1 {[%emt 0:00:12]} Qxc1# {[%emt 0:00:05]} 0-1

[Event "41st BAN National Women Chess-ch 2022"]
[Site "Dhaka"]
[Date "2022.11.19"]
[Round "3.4"]
[White "Nusrat Jahan, Alo"]
[Black "Ahmed, Walijah"]
[Result "1-0"]
[ECO "D02"]
[WhiteElo "1710"]
[BlackElo "1977"]
[Annotator "TA"]
[PlyCount "107"]
[EventDate "2022.11.17"]
[EventCountry "BAN"]
[SourceTitle "playchess.com"]
[Source "ChessBase"]
[SourceQuality "1"]
[TimeControl "40/5400+30:1800+30"]

{[%evp 10,107,4,-5,7,-9,-8,-19,-29,-23,-17,-34,-16,-19,-25,-32,-9,-27,-26,-34,-28,-33,-16,-14,-21,-15,-29,-25,-22,-55,-21,-66,-42,-108,-108,-110,-104,-121,-94,-126,-126,-126,423,423,423,423,423,423,423,423,423,423,423,354,602,575,947,927,965,936,29971,29973,29973,29975,29977,29975,29977,29973,29973,0,29977,29978,29974,5010,29979,29980,29983,29984,29985,29986,29986,29980,29980,29981,29981,29982,29987,29984,29984,29985,29987,29987,29987,29986,29986,29987,29987,29988,29988,29989]} 1. d4 {[%emt 0:00:07]} d5 {[%emt 0:00:46]} 2. Bf4 {[%emt 0:00:09]} Nf6 {[%emt 0:00:19]} 3. e3 {[%emt 0:00:21]} e6 {[%emt 0:00:18]} 4. Nf3 {[%emt 0:00:30]} Bd6 {[%emt 0:00:50]} 5. Bg3 {[%emt 0:00:09]} O-O {[%emt 0:00:27]} 6. Nbd2 {[%emt 0:01:41]} c5 {[%emt 0:00:55] D02: 1 d4 d5 2 Nf3 sidelines, including 2...Nf6 3 g3 and 2...Nf6 3 Bf4.} 7. c3 {[%emt 0:01:38]} Qc7 {[%emt 0:00:42]} 8. Ne5 {[%emt 0:00:36] 8.dxc5 is a critical line.} Nbd7 {[%emt 0:02:06][%cal Rd7e5,Bb8d7,Bd7f6,Bf6e4][%mdl 32] The position is equal.} 9. f4 {[%emt 0:00:26]} Ne4 {[%emt 1:28:37]} 10. Bd3 {[%emt 0:04:58]} Nxd2 {[%emt 0:00:00]} 11. Qxd2 {[%emt 0:01:05]} c4 {[%emt 0:00:00]} 12. Bc2 {[%emt 0:02:37]} Nf6 {[%emt 0:00:00]} 13. O-O {[%emt 0:04:25]} Ne4 {[%emt 0:00:00] [#]} 14. Qe2 $146 {[%emt 0:04:44]} ({Predecessor:} 14. Bxe4 dxe4 15. Qc2 f6 16. Ng4 Bd7 17. Nf2 f5 18. Nh3 b5 19. Qd2 Bc6 20. Qe2 {0-1 (35) Sultana,Z (1771)-Ahmed,W (1904) Dhaka 2021}) 14... b5 {[%emt 0:00:00][%cal Bb7b5,Bb5b4,Bb4b3][%mdl 32]} 15. a4 {[%emt 0:10:07]} f6 {[%emt 0:00:00]} 16. Nf3 {[%emt 0:04:28]} Nxg3 {[%emt 0:03:30]} 17. hxg3 {[%emt 0:00:08]} b4 {[%emt 0:00:00]} 18. e4 {[%emt 0:05:32]} b3 {[%emt 0:00:00]} 19. Bb1 {[%emt 0:00:16]} Bd7 {[%emt 0:00:00]} 20. e5 {[%emt 0:08:07]} fxe5 {[%emt 0:00:00]} 21. fxe5 {[%emt 0:19:52]} (21. Nxe5 $15 Bxe5 22. Qxe5 Qxe5 23. dxe5) 21... Be7 $17 {[%emt 0:00:00]} 22. Kh2 {[%emt 0:01:21]} Qd8 {[%emt 0:00:00]} 23. Rh1 {[%emt 0:02:26]} g6 {[%emt 0:00:00]} 24. Kg1 {[%emt 0:01:04]} a5 {[%emt 0:00:00]} 25. Qd2 {[%emt 0:03:23][%cal Ob1g6] Strongly threatening Bxg6!} Rf7 $2 {[%emt 0:00:00][%mdl 8192] [#]} (25... Qe8 $1 $17 {stays on course.} 26. Qe3 (26. Qh6 Qf7 $17) 26... Qf7) 26. Bxg6 $1 $18 {[%emt 0:04:44][%mdl 512]} Qf8 {[%emt 0:00:00]} (26... hxg6 $2 27. Qh6 Bf6 {[#]} 28. Ng5 $1 {[%mdl 512]}) 27. Bxf7+ {[%emt 0:03:39]} Qxf7 {[%emt 0:00:00]} 28. Ng5 {[%emt 0:03:06]} Bxg5 {[%emt 0:00:00]} 29. Qxg5+ {[%emt 0:00:06]} Qg7 {[%emt 0:00:00]} 30. Qxg7+ {[%emt 0:01:32]} Kxg7 {[%emt 0:00:00][%mdl 4096] Endgame KRR-KRB} 31. Rh4 {[%emt 0:00:10]} Rf8 $2 {[%emt 0:00:00]} (31... Be8 32. Rf1 Bg6) 32. Rf4 {[%emt 0:00:07]} Rxf4 {[%emt 0:00:47]} 33. gxf4 {[%emt 0:00:06] KR-KB} Kg6 {[%emt 0:00:40]} 34. g4 {[%emt 0:00:46]} h5 {[%emt 0:01:30]} 35. gxh5+ {[%emt 0:00:02]} Kxh5 {[%emt 0:00:12]} 36. Kf2 {[%emt 0:00:05]} Kg6 {[%emt 0:02:29]} 37. Ke3 {[%emt 0:00:07]} Kf7 {[%emt 0:00:19]} 38. Rh1 {[%emt 0:01:02]} Kg7 {[%emt 0:00:13]} 39. Ra1 {[%emt 0:00:14]} Kf7 {[%emt 0:01:07]} 40. Kf3 {[%emt 0:00:11]} Kg7 {[%emt 0:00:17]} 41. Kg4 {[%emt 0:30:14] Intending Kg5 and mate.} Kg6 {[%emt 0:34:56]} 42. Rh1 {[%emt 0:00:14] White mates.} Kg7 {[%emt 0:00:00]} 43. Kg5 {[%emt 0:02:38]} Bc8 {[%emt 0:00:00]} 44. Rh6 {[%emt 0:02:59]} Bd7 {[%emt 0:00:00]} 45. Rg6+ {[%emt 0:00:06]} Kf7 {[%emt 0:00:00]} 46. Kh6 {[%emt 0:00:15]} Bxa4 {[%emt 0:00:40]} 47. Rg7+ {[%emt 0:00:38]} Kf8 {[%emt 0:00:15]} 48. Ra7 {[%emt 0:00:07]} Be8 {[%emt 0:00:13]} 49. Rxa5 {[%emt 0:00:07]} Kg8 {[%emt 0:00:50]} 50. Ra8 {[%emt 0:00:36]} Kf8 {[%emt 0:00:57]} 51. Kg5 {[%emt 0:00:06]} Ke7 {[%emt 0:00:57] [#]} 52. Rxe8+ $1 {[%emt 0:00:12]} Kxe8 {[%emt 0:00:05]} 53. Kf6 {[%emt 0:00:04]} Kd7 {[%emt 0:00:06]} 54. Kf7 {[%emt 0:00:05] Weighted Error Value: White=0.11 (very precise) /Black=0.44} 1-0

[Event "41st BAN National Women Chess-ch 2022"]
[Site "Dhaka"]
[Date "2022.11.19"]
[Round "3.5"]
[White "Tasnia Tarannum, Orpa"]
[Black "Hamid, Rani"]
[Result "1/2-1/2"]
[ECO "E21"]
[WhiteElo "1662"]
[BlackElo "1760"]
[Annotator "NA COMBH"]
[PlyCount "98"]
[EventDate "2022.11.17"]
[EventCountry "BAN"]
[SourceTitle "playchess.com"]
[Source "ChessBase"]
[SourceQuality "1"]
[TimeControl "40/5400+30:1800+30"]

1. d4 {[%emt 0:00:06]} Nf6 {[%emt 0:01:29]} 2. c4 {[%emt 0:00:14]} e6 {[%emt 0:00:07]} 3. Nf3 {[%emt 0:00:06]} b6 {[%emt 0:00:21]} 4. Nc3 {[%emt 0:01:01]} Bb7 {[%emt 0:00:20]} 5. Qc2 {[%emt 0:01:02]} Bb4 {[%emt 0:00:51]} 6. a3 {[%emt 0:02:06]} Bxc3+ {[%emt 0:00:22]} 7. bxc3 {[%emt 0:00:04]} O-O {[%emt 0:00:50]} 8. Bg5 {[%emt 0:02:50]} d6 {[%emt 0:00:56]} 9. e3 {[%emt 0:02:26]} h6 {[%emt 0:01:40]} 10. Bh4 {[%emt 0:00:26]} Nbd7 {[%emt 0:02:35]} 11. Bd3 {[%emt 0:00:19]} Re8 {[%emt 0:01:44]} 12. e4 {[%emt 0:01:29]} e5 {[%emt 0:00:46]} 13. d5 {[%emt 0:01:40]} Nf8 {[%emt 0:03:14]} 14. h3 {[%emt 0:03:11]} Ng6 {[%emt 0:00:18]} 15. Bg3 {[%emt 0:00:09]} Nh5 {[%emt 0:01:04]} 16. Bh2 {[%emt 0:00:14]} Nhf4 {[%emt 0:01:07]} 17. O-O {[%emt 0:00:44]} Qf6 {[%emt 0:02:02]} 18. Bxf4 {[%emt 0:10:29]} Nxf4 {[%emt 0:00:42]} 19. Kh2 {[%emt 0:01:02]} Bc8 {[%emt 0:01:48]} 20. Rg1 {[%emt 0:07:15]} g5 {[%emt 0:03:33]} 21. Bf1 {[%emt 0:06:52]} Bd7 {[%emt 0:04:58]} 22. Ne1 {[%emt 0:01:50]} Kg7 {[%emt 0:02:20]} 23. g3 {[%emt 0:06:13]} Ng6 {[%emt 0:00:14]} 24. Nd3 {[%emt 0:01:43]} g4 {[%emt 0:05:10]} 25. Rh1 {[%emt 0:07:49]} gxh3 {[%emt 0:08:38]} 26. Be2 {[%emt 0:05:41]} Rh8 {[%emt 0:04:45]} 27. Bh5 {[%emt 0:01:21]} Qg5 {[%emt 0:02:25]} 28. Qe2 {[%emt 0:01:59]} Nf8 {[%emt 0:01:52]} 29. Raf1 {[%emt 0:01:35]} Nh7 {[%emt 0:05:42]} 30. f4 {[%emt 0:12:37]} exf4 {[%emt 0:00:14]} 31. gxf4 {[%emt 0:00:30]} Qg2+ {[%emt 0:01:04]} 32. Qxg2+ {[%emt 0:00:22]} hxg2 {[%emt 0:00:02]} 33. Kxg2 {[%emt 0:00:03]} Nf6 {[%emt 0:01:16]} 34. Bf3 {[%emt 0:00:07]} h5 {[%emt 0:01:29]} 35. Rfg1 {[%emt 0:05:14]} Ng4 {[%emt 0:04:30]} 36. Kf1 {[%emt 0:03:15]} Kf6 {[%emt 0:00:09]} 37. Ke2 {[%emt 0:02:23]} Rae8 {[%emt 0:00:57]} 38. Nf2 {[%emt 0:00:21]} Bf5 {[%emt 0:02:08]} 39. Bxg4 {[%emt 0:03:52]} Bxg4+ {[%emt 0:00:23]} 40. Nxg4+ {[%emt 0:00:10]} hxg4 {[%emt 0:00:03]} 41. Rxh8 {[%emt 0:30:49]} Rxh8 {[%emt 0:30:10]} 42. Rxg4 {[%emt 0:00:28]} Rh2+ {[%emt 0:00:12]} 43. Kd3 {[%emt 0:00:23]} Ra2 {[%emt 0:00:03]} 44. Rg8 {[%emt 0:00:20]} Ke7 {[%emt 0:00:46]} 45. Rc8 {[%emt 0:01:58]} Kd7 {[%emt 0:00:27]} 46. Rf8 {[%emt 0:00:09]} Ke7 {[%emt 0:01:09]} 47. Rc8 {[%emt 0:00:05]} Kd7 {[%emt 0:00:56]} 48. Rf8 {[%emt 0:00:06]} Ke7 {[%emt 0:01:05]} 49. Rc8 {[%emt 0:00:11]} Kd7 {[%emt 0:00:07]} 1/2-1/2